bitfinex/quotes_BTCUSD_20220204
["timestamp","ask_amount","ask_price","bid_price","bid_amount"]
[1643993163259,0.047,40393.0,40388.0,0.003]
[1643993163459,0.047,40393.0,40383.0,0.003]
[1643993163765,0.047,40394.0,40391.0,0.003]
[1643993164259,0.02130767,40397.0,40391.0,0.003]
[1643993164460,0.0001,40400.0,40398.0,0.337792]
[1643993164665,0.0005,40409.0,40400.0,1.65]
[1643993164862,0.5626876,40417.0,40402.0,1.65]
[1643993165060,0.5626876,40417.0,40403.0,1.36677248]
[1643993165260,0.5126876,40417.0,40410.0,0.42161283]
[1643993165461,0.0005752,40417.0,40416.0,0.05]
[1643993165660,0.0005752,40417.0,40416.0,1.282697]
[1643993165859,0.0005752,40417.0,40416.0,0.332697]
[1643993166060,0.0005752,40417.0,40411.0,0.05]
[1643993166662,0.0011504,40417.0,40414.0,0.05]
[1643993166915,0.41474262,40412.0,40407.0,0.05]
[1643993167115,0.41474262,40412.0,40403.0,0.5457]
[1643993167116,0.32107248,40411.0,40409.0,0.5]
[1643993167317,0.32107248,40411.0,40394.0,0.728]
[1643993167318,0.15,40410.0,40394.0,0.728]
[1643993167516,0.33525325,40397.0,40394.0,0.728]
[1643993167714,0.46474262,40412.0,40394.0,0.01463008]
[1643993167715,0.32107248,40402.0,40394.0,0.01463008]
[1643993167911,0.32107248,40403.0,40394.0,0.01002144]
[1643993168111,0.44722139,40395.0,40394.0,0.01002144]
[1643993168313,0.0457,40402.0,40395.0,0.00547302]
[1643993168511,0.12692471,40399.0,40395.0,0.00547302]
[1643993168711,0.33767,40397.0,40384.0,0.7298]
[1643993168912,0.32107248,40396.0,40389.0,0.01912373]
[1643993169115,0.42,40397.0,40389.0,0.01912373]
[1643993169514,0.65874248,40396.0,40389.0,0.01912373]
[1643993169715,0.33767,40390.0,40389.0,0.01912373]
[1643993169915,0.77402627,40396.0,40389.0,0.01912373]
[1643993170112,0.65874248,40395.0,40389.0,0.01912373]
[1643993170312,0.33767,40395.0,40389.0,0.01912373]
[1643993170767,0.0457,40394.0,40389.0,0.01912373]
[1643993170967,1.33767,40390.0,40389.0,0.01912373]
[1643993171165,1.33767,40390.0,40384.0,0.02023517]
[1643993171166,0.38337,40390.0,40384.0,0.02023517]
[1643993171366,0.31814636,40389.0,40384.0,0.02023517]
[1643993171566,0.78479238,40388.0,40384.0,0.02023517]
[1643993171772,0.77479238,40388.0,40384.0,0.02023517]
[1643993172268,0.0457,40388.0,40384.0,0.02023517]
[1643993173068,0.0457,40388.0,40379.0,0.02157672]
[1643993173267,0.0457,40388.0,40380.0,0.337729]
[1643993173475,0.50257907,40396.0,40381.0,0.39147464]
[1643993173670,0.0457,40396.0,40384.0,0.05]
[1643993173869,0.0457,40396.0,40379.0,0.02157672]
[1643993174320,0.38193083,40391.0,40379.0,0.02157672]
[1643993174508,0.09766614,40395.0,40379.0,0.02157672]
[1643993174708,0.42,40397.0,40379.0,0.02157672]
[1643993174709,0.36639826,40389.0,40379.0,0.02157672]
[1643993175310,0.0457,40388.0,40379.0,0.02157672]
[1643993175510,0.0457,40388.0,40379.0,0.04282091]
[1643993175811,0.0457,40388.0,40379.0,0.02124419]
[1643993176411,0.0457,40388.0,40386.0,0.00081035]
[1643993176412,0.337729,40387.0,40386.0,0.00081035]
[1643993177209,0.383429,40387.0,40386.0,0.00081035]
[1643993177612,0.77575734,40387.0,40386.0,0.00081035]
[1643993177811,0.77075734,40387.0,40386.0,0.00081035]
[1643993178076,0.98864668,40387.0,40386.0,0.00081035]
[1643993178276,1.05698982,40387.0,40386.0,0.00081035]
[1643993178476,1.09609795,40387.0,40386.0,0.00081035]
[1643993178676,1.30746231,40387.0,40386.0,0.00081035]
[1643993178875,0.90700667,40387.0,40386.0,0.00081035]
[1643993179077,1.05607103,40387.0,40386.0,0.00081035]
[1643993179277,1.05607103,40387.0,40385.0,0.00246035]
[1643993179278,1.987729,40386.0,40385.0,0.00246035]
[1643993179481,0.43667698,40379.0,40375.0,2.0]
[1643993179676,0.37952738,40378.0,40375.0,1.9049]
[1643993179876,0.1457,40378.0,40375.0,1.9049]
[1643993180079,0.42738464,40378.0,40375.0,1.9049]
[1643993180278,0.46745346,40377.0,40375.0,1.9049]
[1643993180479,0.55,40375.0,40356.0,0.57292364]
[1643993180679,0.55,40375.0,40351.0,0.25]
[1643993180680,0.07543643,40367.0,40358.0,0.337729]
[1643993180879,0.0457,40366.0,40359.0,0.29777]
[1643993181178,0.061947,40372.0,40361.0,0.337729]
[1643993181378,0.061947,40372.0,40360.0,1.65]
[1643993181379,0.0457,40371.0,40362.0,0.337729]
[1643993181578,0.0457,40371.0,40360.0,1.65]
[1643993181817,0.42881048,40367.0,40361.0,0.337729]
[1643993182017,0.0457,40366.0,40357.0,0.4947]
[1643993182608,0.0457,40366.0,40357.0,0.5447]
[1643993182808,0.0457,40366.0,40359.0,0.4567353]
[1643993183007,0.0457,40366.0,40360.0,0.337729]
[1643993183409,0.0457,40366.0,40363.0,0.05]
[1643993183612,0.0457,40366.0,40364.0,0.337729]
[1643993183811,0.0457,40366.0,40359.0,0.05]
[1643993184010,0.0457,40366.0,40358.0,0.4947]
[1643993184210,0.0457,40366.0,40359.0,0.337729]
[1643993184412,0.46120962,40364.0,40363.0,0.95]
[1643993184614,0.46120962,40364.0,40358.0,0.4947]
[1643993184815,0.46120962,40364.0,40363.0,1.24527]
[1643993185014,0.46120962,40364.0,40363.0,0.337729]
[1643993185212,0.46120962,40364.0,40359.0,0.0193667]
[1643993186055,0.46120962,40364.0,40363.0,0.95]
[1643993186255,0.00473,40367.0,40363.0,1.332999]
[1643993186456,0.00473,40368.0,40366.0,1.34527]
[1643993186655,0.00473,40368.0,40367.0,0.382963]
[1643993186854,0.061945,40373.0,40367.0,0.337693]
[1643993187058,0.00473,40368.0,40364.0,0.04527]
[1643993187258,0.46480917,40368.0,40364.0,0.04527]
[1643993187855,0.26,40367.0,40364.0,0.04527]
[1643993188255,0.00473,40365.0,40364.0,0.84527]
[1643993188457,0.00473,40365.0,40360.0,0.04527]
[1643993188656,0.00473,40361.0,40358.0,0.4947]
[1643993188856,0.00473,40361.0,40359.0,0.337729]
[1643993189056,0.00473,40361.0,40360.0,0.02942773]
[1643993189313,0.00473,40361.0,40360.0,0.01877273]
[1643993189506,0.49038963,40361.0,40360.0,0.01877273]
[1643993189911,0.82811863,40361.0,40360.0,0.01877273]
[1643993191008,0.10309176,40346.0,40344.0,0.4947]
[1643993191210,0.00473,40346.0,40341.0,0.9206]
[1643993191407,0.00473,40346.0,40342.0,1.388729]
[1643993191909,0.1344873,40347.0,40342.0,1.388729]
[1643993191910,0.00473,40343.0,40342.0,1.388729]
[1643993193057,0.00473,40343.0,40336.0,0.7206]
[1643993193259,0.00473,40343.0,40337.0,0.73372255]
[1643993193456,0.00473,40343.0,40337.0,0.68845255]
[1643993193658,0.066715,40343.0,40337.0,0.68845255]
[1643993193858,0.169658,40350.0,40337.0,0.68845255]
[1643993193859,0.169658,40350.0,40341.0,0.010874]
[1643993194057,0.84476095,40365.0,40338.0,0.337729]
[1643993194058,1.11889141,40342.0,40338.0,0.337729]
[1643993194458,0.05,40346.0,40332.0,0.5847]
[1643993194658,0.33139893,40351.0,40334.0,0.337729]
[1643993194963,0.05,40349.0,40335.0,0.337729]
[1643993195156,0.05,40349.0,40334.0,0.31071448]
[1643993195361,0.0457,40348.0,40337.0,0.14063908]
[1643993195557,0.0457,40348.0,40341.0,0.46724093]
[1643993195957,0.0457,40348.0,40337.0,0.14063908]
[1643993196158,0.0457,40348.0,40337.0,0.11063908]
[1643993196358,0.23758696,40351.0,40337.0,0.17260308]
[1643993196559,0.23758696,40351.0,40346.0,0.00338942]
[1643993196812,0.157666,40357.0,40348.0,0.43836627]
[1643993196813,0.38817715,40355.0,40348.0,0.43836627]
[1643993197010,0.157666,40357.0,40351.0,0.02170722]
[1643993197011,0.05,40357.0,40351.0,0.02170722]
[1643993197214,0.05,40361.0,40352.0,0.010753]
[1643993197410,0.05,40361.0,40351.0,0.02170722]
[1643993197617,0.05,40361.0,40352.0,0.337729]
[1643993197809,0.061953,40365.0,40352.0,0.337729]
[1643993197810,0.38944465,40365.0,40352.0,0.337729]
[1643993198009,0.38944465,40365.0,40351.0,0.02170722]
[1643993198010,0.05,40357.0,40356.0,1.90218701]
[1643993198210,0.56751151,40364.0,40356.0,0.78991601]
[1643993198410,0.05,40361.0,40356.0,0.45218701]
[1643993198810,0.56751151,40364.0,40354.0,0.01]
[1643993199010,0.56751151,40364.0,40351.0,0.51640722]
[1643993199011,0.04,40361.0,40360.0,0.01]
[1643993199412,0.04,40361.0,40355.0,0.01]
[1643993200215,0.37048452,40359.0,40355.0,0.01]
[1643993200413,0.12670146,40357.0,40355.0,0.01]
[1643993200856,0.005,40356.0,40355.0,0.01]
[1643993201057,0.37048452,40359.0,40355.0,0.01]
[1643993201457,0.37048452,40359.0,40353.0,0.15]
[1643993201458,0.04,40361.0,40358.0,0.01]
[1643993201659,0.04,40361.0,40359.0,0.33849634]
[1643993202057,0.04,40361.0,40360.0,1.670655]
[1643993202778,0.42701852,40377.0,40371.0,0.01]
[1643993202973,0.09809849,40384.0,40372.0,1.4]
[1643993203172,0.0971591,40382.0,40379.0,0.05]
[1643993203376,0.002,40385.0,40372.0,1.4]
[1643993203874,0.002,40385.0,40371.0,0.0457]
[1643993203875,0.34488907,40378.0,40371.0,0.0457]
[1643993204072,0.002,40385.0,40368.0,0.05]
[1643993204073,0.04415918,40383.0,40368.0,0.05]
[1643993204339,0.09407675,40378.0,40368.0,0.05]
[1643993204631,0.09407675,40378.0,40369.0,0.337729]
[1643993204831,0.08445891,40379.0,40371.0,0.05]
[1643993205033,0.08445891,40379.0,40366.0,0.0457]
[1643993205034,0.27660938,40370.0,40367.0,0.05]
[1643993205232,0.08533489,40372.0,40366.0,0.06742624]
[1643993205439,0.14727789,40372.0,40366.0,0.02172624]
[1643993206032,0.13961333,40371.0,40366.0,0.02172624]
[1643993206234,0.34007067,40368.0,40366.0,0.02172624]
[1643993206632,0.13961333,40371.0,40366.0,0.02172624]
[1643993206835,0.13961333,40371.0,40367.0,0.337729]
[1643993207235,0.13145625,40364.0,40363.0,0.7676]
[1643993207436,0.13145625,40364.0,40361.0,0.02056991]
[1643993207640,0.13145625,40364.0,40363.0,0.387729]
[1643993207836,0.13145625,40364.0,40363.0,0.05]
[1643993208377,0.00884889,40375.0,40363.0,0.05]
[1643993208378,0.09232289,40372.0,40363.0,0.387729]
[1643993208579,0.03590302,40370.0,40364.0,0.010614]
[1643993208878,0.09246182,40369.0,40363.0,0.05]
[1643993209176,0.0910653,40368.0,40363.0,0.05]
[1643993209378,0.13804782,40367.0,40366.0,0.35993011]
[1643993209577,0.13804782,40367.0,40363.0,0.05]
[1643993209978,0.12066174,40367.0,40363.0,0.05]
[1643993210181,0.12066174,40367.0,40366.0,0.05]
[1643993210385,0.31525152,40367.0,40366.0,0.05]
[1643993210588,0.02066174,40367.0,40366.0,0.05]
[1643993211382,0.09553399,40366.0,40361.0,0.02011587]
[1643993211587,0.05695527,40367.0,40364.0,0.05]
[1643993211588,0.03066174,40367.0,40364.0,0.05]
[1643993211830,0.03066174,40367.0,40361.0,0.02011587]
[1643993212024,0.03066174,40367.0,40363.0,0.05]
[1643993212224,0.03066174,40367.0,40361.0,0.02011587]
[1643993212425,0.01,40367.0,40364.0,0.3901105]
[1643993212824,0.01,40367.0,40363.0,0.05]
[1643993213629,0.01,40367.0,40362.0,0.01906512]
[1643993213630,0.0995916,40366.0,40362.0,0.01906512]
[1643993213828,0.14459903,40364.0,40363.0,0.05]
[1643993214029,0.01,40367.0,40363.0,0.05]
[1643993214228,0.01,40367.0,40364.0,0.337729]
[1643993214930,0.31748518,40366.0,40362.0,0.01906512]
[1643993215129,0.43581381,40365.0,40362.0,0.03969983]
[1643993215330,0.31748518,40366.0,40362.0,0.02063471]
[1643993215331,0.337729,40363.0,40362.0,0.02063471]
[1643993215596,0.10146057,40364.0,40362.0,0.02063471]
[1643993215597,0.105244,40364.0,40362.0,0.02063471]
[1643993215782,0.45520724,40363.0,40362.0,0.02063471]
[1643993216376,0.76260721,40363.0,40362.0,0.02063471]
[1643993217376,0.76260721,40363.0,40359.0,0.00076734]
[1643993217377,0.08336661,40361.0,40359.0,0.00076734]
[1643993217577,0.987729,40360.0,40359.0,0.00076734]
[1643993217779,0.987729,40360.0,40349.0,0.7428]
[1643993217780,0.337729,40358.0,40349.0,0.7428]
[1643993217979,1.22343533,40359.0,40339.0,0.2917]
[1643993217980,1.287729,40356.0,40339.0,0.2917]
[1643993218177,1.287729,40356.0,40340.0,0.7669]
[1643993218178,0.787729,40356.0,40340.0,0.7669]
[1643993218380,0.383429,40356.0,40355.0,0.098325]
[1643993218576,0.89606297,40356.0,40355.0,0.098325]
[1643993218780,0.383429,40356.0,40355.0,0.098325]
[1643993218976,0.0457,40356.0,40355.0,0.098325]
[1643993219435,0.383429,40356.0,40355.0,0.098325]
[1643993219632,0.5145432,40356.0,40355.0,0.098325]
[1643993219931,0.383429,40356.0,40355.0,0.098325]
[1643993220430,0.0457,40356.0,40355.0,0.098325]
[1643993220632,0.383429,40356.0,40355.0,0.098325]
[1643993220831,0.19938357,40356.0,40355.0,0.098325]
[1643993221035,0.53711257,40356.0,40355.0,0.098325]
[1643993221430,0.378429,40356.0,40355.0,0.098325]
[1643993221633,0.337729,40356.0,40355.0,0.098325]
[1643993221832,0.061975,40359.0,40355.0,0.098325]
[1643993222233,0.337729,40358.0,40355.0,0.098325]
[1643993222434,0.4618441,40358.0,40355.0,0.098325]
[1643993222634,0.337729,40358.0,40355.0,0.098325]
[1643993223678,0.337729,40358.0,40355.0,0.148325]
[1643993223877,0.0457,40363.0,40355.0,0.148325]
[1643993223878,0.061955,40364.0,40355.0,0.148325]
[1643993224075,0.5,40366.0,40359.0,0.05]
[1643993224278,0.5,40366.0,40355.0,0.098325]
[1643993224475,0.5,40366.0,40356.0,0.74332]
[1643993224676,0.42407759,40365.0,40356.0,0.74332]
[1643993224876,0.37317115,40367.0,40356.0,0.74332]
[1643993225276,0.12768211,40366.0,40356.0,0.74332]
[1643993225477,0.37317115,40367.0,40356.0,0.84522]
[1643993226077,0.43039769,40360.0,40356.0,0.84522]
[1643993226833,0.09485389,40357.0,40356.0,0.27775207]
[1643993227028,0.43258289,40357.0,40356.0,0.27775207]
[1643993227227,0.337729,40357.0,40356.0,0.27775207]
[1643993227427,0.44144215,40357.0,40356.0,0.27775207]
[1643993227628,0.337729,40357.0,40356.0,0.27775207]
[1643993227828,0.42951038,40357.0,40356.0,0.27775207]
[1643993228028,0.337729,40357.0,40356.0,0.27775207]
[1643993228428,0.43286782,40357.0,40356.0,0.27775207]
[1643993228631,0.337729,40357.0,40356.0,0.27775207]
[1643993228836,0.43770316,40357.0,40356.0,0.27775207]
[1643993229027,0.337729,40357.0,40356.0,0.27775207]
[1643993230033,0.337729,40357.0,40346.0,0.00338942]
[1643993230034,0.68521439,40350.0,40346.0,0.00338942]
[1643993230236,0.337729,40349.0,40346.0,0.00338942]
[1643993230683,0.68521439,40350.0,40346.0,0.00338942]
[1643993230684,2.33305338,40347.0,40346.0,0.00338942]
[1643993230883,0.72875338,40347.0,40346.0,0.00338942]
[1643993231082,1.13544865,40347.0,40346.0,0.00338942]
[1643993231492,1.1349809,40347.0,40346.0,0.00338942]
[1643993231680,1.55,40346.0,40334.0,0.7587]
[1643993231885,1.75145547,40344.0,40332.0,0.09]
[1643993232083,0.09403656,40336.0,40332.0,0.09]
[1643993232281,0.3603316,40343.0,40332.0,0.09]
[1643993232282,0.12281728,40334.0,40332.0,0.09]
[1643993232483,0.47536753,40334.0,40332.0,0.09]
[1643993232686,0.16851728,40334.0,40332.0,0.09]
[1643993232983,0.56818715,40334.0,40332.0,0.09]
[1643993233182,1.2264056,40334.0,40333.0,2.0015]
[1643993233383,1.2264056,40334.0,40332.0,0.09]
[1643993233384,1.937811,40333.0,40332.0,0.09]
[1643993233584,0.383511,40333.0,40332.0,0.09]
[1643993233781,0.74784443,40333.0,40332.0,0.09]
[1643993234182,0.79784443,40333.0,40332.0,0.09]
[1643993234442,0.44014244,40333.0,40332.0,0.0855]
[1643993235339,0.39014244,40333.0,40332.0,0.0855]
[1643993235741,0.7594728,40333.0,40332.0,0.0855]
[1643993235938,0.27041637,40322.0,40321.0,0.5]
[1643993236140,0.35158077,40322.0,40321.0,0.5]
[1643993236339,0.06202,40323.0,40321.0,0.5]
[1643993236544,0.06202,40323.0,40321.0,0.55]
[1643993236742,0.06202,40323.0,40322.0,0.05]
[1643993238174,0.06202,40323.0,40321.0,0.5]
[1643993238175,0.06855741,40323.0,40321.0,0.5]
[1643993238375,0.06855741,40323.0,40322.0,0.05]
[1643993238376,0.06202,40323.0,40322.0,0.05]
[1643993238575,0.16973,40327.0,40322.0,0.05]
[1643993238776,0.0457,40327.0,40322.0,0.05]
[1643993239377,0.14942261,40327.0,40322.0,0.05]
[1643993239677,0.09345528,40326.0,40322.0,0.05]
[1643993240077,0.0457,40327.0,40322.0,0.05]
[1643993240078,0.062016,40324.0,40322.0,0.05]
[1643993240276,0.09260747,40326.0,40322.0,0.05]
[1643993240480,0.09260747,40326.0,40325.0,0.05]
[1643993240676,0.09260747,40326.0,40324.0,0.05]
[1643993240876,0.21,40324.0,40321.0,0.49]
[1643993241079,0.05,40323.0,40321.0,0.49]
[1643993241277,0.21,40324.0,40321.0,0.49]
[1643993241476,0.05,40323.0,40321.0,0.49]
[1643993241939,0.0980273,40322.0,40321.0,0.49]
[1643993242139,0.4438318,40322.0,40321.0,0.49]
[1643993242739,2.41759935,40322.0,40321.0,0.40966498]
[1643993242939,0.76759935,40322.0,40321.0,0.40966498]
[1643993243338,2.31759935,40322.0,40321.0,6.498e-05]
[1643993243538,0.4438318,40322.0,40321.0,6.498e-05]
[1643993243738,0.64843887,40322.0,40321.0,4.98e-06]
[1643993243946,1.09815686,40322.0,40321.0,4.98e-06]
[1643993244142,1.24843887,40322.0,40321.0,4.98e-06]
[1643993244346,0.34572833,40306.0,40305.0,0.03281571]
[1643993244545,0.73353933,40306.0,40305.0,0.03281571]
[1643993244744,0.86287825,40306.0,40305.0,0.03281571]
[1643993245042,0.73353933,40306.0,40305.0,0.03281571]
[1643993245242,0.062045,40308.0,40305.0,0.03281571]
[1643993245877,0.17597325,40308.0,40305.0,0.03281571]
[1643993246079,0.062045,40308.0,40305.0,0.03281571]
[1643993247077,0.1906231,40308.0,40305.0,0.03281571]
[1643993247276,0.062045,40308.0,40305.0,0.03281571]
[1643993248480,0.062045,40308.0,40305.0,0.0321609]
[1643993248781,0.062045,40308.0,40300.0,0.01]
[1643993249835,0.062045,40308.0,40303.0,0.46143745]
[1643993250332,0.231816,40316.0,40303.0,0.46143745]
[1643993250334,0.29188125,40319.0,40303.0,0.46143745]
[1643993250528,0.29188125,40319.0,40303.0,0.56143745]
[1643993250529,0.29311472,40319.0,40303.0,0.56143745]
[1643993250730,0.12513111,40313.0,40303.0,0.56143745]
[1643993250927,0.291348,40316.0,40304.0,0.337811]
[1643993251130,0.05,40309.0,40300.0,0.01]
[1643993251328,0.062034,40309.0,40303.0,0.01975119]
[1643993251529,0.112034,40309.0,40303.0,0.01975119]
[1643993251729,0.29001486,40308.0,40303.0,0.01975119]
[1643993252328,0.05,40307.0,40303.0,0.01975119]
[1643993252529,0.41277834,40309.0,40303.0,0.01975119]
[1643993252530,0.05,40308.0,40303.0,0.01975119]
[1643993253379,0.05,40308.0,40300.0,0.01]
[1643993253579,0.16514238,40309.0,40300.0,0.01]
[1643993253782,0.05,40312.0,40301.0,0.062029]
[1643993254178,0.10432249,40311.0,40302.0,0.337811]
[1643993254378,0.10432249,40311.0,40303.0,0.337811]
[1643993254583,0.10432249,40311.0,40300.0,0.005]
[1643993254779,0.1497,40318.0,40307.0,0.35817716]
[1643993254780,0.112026,40315.0,40307.0,0.35817716]
[1643993254980,0.21346136,40315.0,40307.0,0.35817716]
[1643993255281,0.21346136,40315.0,40307.0,0.45817716]
[1643993255481,0.062026,40315.0,40307.0,0.45817716]
[1643993255879,0.17573829,40315.0,40307.0,0.45817716]
[1643993256481,0.09712575,40313.0,40307.0,0.45817716]
[1643993256680,0.17573829,40315.0,40307.0,0.45817716]
[1643993256930,0.10579175,40316.0,40312.0,0.337811]
[1643993257231,0.32333533,40317.0,40312.0,0.337811]
[1643993257232,0.09955972,40315.0,40312.0,0.337811]
[1643993257432,0.04700331,40320.0,40312.0,0.337811]
[1643993257632,0.1017262,40319.0,40317.0,0.01196667]
[1643993257832,0.10005133,40320.0,40318.0,0.37499014]
[1643993257833,0.19631639,40320.0,40318.0,0.37499014]
[1643993258030,0.03803333,40320.0,40319.0,1.737811]
[1643993258234,0.03803333,40320.0,40319.0,0.337811]
[1643993258828,0.1417073,40323.0,40319.0,0.337811]
[1643993259031,0.1417073,40323.0,40322.0,0.01196667]
[1643993259429,0.03803333,40323.0,40322.0,0.01196667]
[1643993259630,0.03803333,40323.0,40322.0,0.34977767]
[1643993260232,0.03803333,40331.0,40322.0,0.7076779]
[1643993260433,0.11904614,40334.0,40330.0,0.01196667]
[1643993260679,0.10263834,40332.0,40330.0,0.01196667]
[1643993260880,0.11904614,40334.0,40330.0,0.01196667]
[1643993260881,0.21380959,40334.0,40330.0,0.01196667]
[1643993261096,0.21770193,40334.0,40330.0,0.01196667]
[1643993261282,0.21770193,40334.0,40326.0,0.01196667]
[1643993261283,0.08315631,40332.0,40326.0,0.01196667]
[1643993261479,0.32079791,40337.0,40326.0,0.01196667]
[1643993261480,0.10408443,40327.0,40326.0,0.01196667]
[1643993261678,0.13835347,40334.0,40326.0,0.01196667]
[1643993261879,0.03640783,40332.0,40326.0,0.01196667]
[1643993262178,0.03640783,40332.0,40325.0,0.01992616]
[1643993262179,0.04244668,40332.0,40325.0,0.01992616]
[1643993262383,0.13181853,40331.0,40325.0,0.01992616]
[1643993262579,0.12534653,40328.0,40325.0,0.01992616]
[1643993262779,0.16203533,40334.0,40327.0,0.01196667]
[1643993262981,0.16203533,40334.0,40325.0,0.01992616]
[1643993262982,0.03803333,40334.0,40333.0,0.01196667]
[1643993263179,0.12915684,40334.0,40333.0,0.01196667]
[1643993263579,0.12915684,40334.0,40328.0,0.01196667]
[1643993263781,0.12915684,40334.0,40325.0,0.03189283]
[1643993263782,0.30943336,40334.0,40325.0,0.03189283]
[1643993263979,0.09915441,40332.0,40325.0,0.03189283]
[1643993264179,0.03559384,40331.0,40325.0,0.01196667]
[1643993264451,0.03452256,40329.0,40325.0,0.01196667]
[1643993264640,0.15637676,40326.0,40325.0,0.01196667]
[1643993264838,0.09089142,40327.0,40325.0,0.01196667]
[1643993265042,0.09089142,40327.0,40319.0,0.08566167]
[1643993265239,0.04907055,40325.0,40322.0,0.0497]
[1643993265438,0.15976028,40326.0,40323.0,0.337811]
[1643993265638,0.062006,40326.0,40323.0,0.337811]
[1643993265838,0.062006,40326.0,40321.0,0.01929505]
[1643993266039,0.16100029,40325.0,40321.0,0.01929505]
[1643993266239,0.062006,40326.0,40321.0,0.01929505]
[1643993266641,0.05,40322.0,40321.0,0.35710605]
[1643993266844,0.05,40322.0,40321.0,0.01929505]
[1643993267044,0.49002763,40322.0,40321.0,0.01929505]
[1643993267241,0.54613813,40322.0,40321.0,0.01929505]
[1643993267439,0.77778703,40322.0,40321.0,0.01929505]
[1643993267644,0.09413537,40320.0,40317.0,0.01832993]
[1643993267841,0.05,40318.0,40317.0,0.01832993]
[1643993269493,0.05,40318.0,40311.0,0.337811]
[1643993269895,0.062018,40317.0,40311.0,0.337811]
[1643993270097,0.35907228,40317.0,40311.0,0.337811]
[1643993270300,0.062018,40317.0,40311.0,0.337811]
[1643993270496,0.062018,40317.0,40310.0,0.7246]
[1643993270897,0.05,40316.0,40311.0,0.332811]
[1643993271096,0.18813524,40316.0,40311.0,0.332811]
[1643993271302,0.062018,40317.0,40311.0,0.332811]
[1643993271497,0.05,40313.0,40311.0,0.332811]
[1643993271696,0.112018,40317.0,40311.0,0.332811]
[1643993271951,0.112018,40317.0,40310.0,0.337871]
[1643993272149,0.112018,40317.0,40310.0,0.45236294]
[1643993272349,0.00606488,40323.0,40319.0,0.08705241]
[1643993273351,0.06202,40322.0,40319.0,0.08705241]
[1643993273555,0.07041346,40322.0,40319.0,0.08705241]
[1643993273753,0.337871,40320.0,40319.0,0.08705241]
[1643993273952,0.64932708,40320.0,40319.0,0.08705241]
[1643993274251,0.70729172,40320.0,40319.0,0.08705241]
[1643993274455,1.40699172,40320.0,40319.0,0.08705241]
[1643993274653,1.52211505,40320.0,40319.0,0.08705241]
[1643993274851,0.97211505,40320.0,40319.0,0.08705241]
[1643993275052,0.44553564,40320.0,40319.0,0.08705241]
[1643993276086,0.57613274,40320.0,40319.0,0.08705241]
[1643993276285,0.67613274,40320.0,40319.0,0.08705241]
[1643993276484,1.22613274,40320.0,40319.0,0.08705241]
[1643993276684,0.67613274,40320.0,40319.0,0.08705241]
[1643993276883,0.57613274,40320.0,40319.0,0.08705241]
[1643993277484,0.57613274,40320.0,40308.0,0.05]
[1643993277793,0.31362328,40314.0,40306.0,0.7338]
[1643993278089,0.09958446,40313.0,40306.0,0.7338]
[1643993278285,0.00699665,40310.0,40306.0,0.7338]
[1643993278485,0.00699665,40310.0,40307.0,0.337871]
[1643993278684,0.09867678,40309.0,40307.0,0.337871]
[1643993279084,0.09930081,40308.0,40306.0,0.740288]
[1643993279338,0.09930081,40308.0,40306.0,0.006488]
[1643993279639,0.11295555,40312.0,40306.0,0.006488]
[1643993279838,0.05,40311.0,40308.0,0.05]
[1643993280039,0.09831915,40309.0,40308.0,0.05]
[1643993280243,0.09831915,40309.0,40308.0,0.387871]
[1643993280645,0.09831915,40309.0,40308.0,0.3863232]
[1643993280839,0.062027,40313.0,40308.0,0.4863232]
[1643993281039,0.0015478,40314.0,40312.0,0.0484522]
[1643993281441,0.0015478,40317.0,40313.0,0.337871]
[1643993281642,0.0015478,40314.0,40305.0,0.20399157]
[1643993281840,0.0015478,40307.0,40305.0,0.00030465]
[1643993282140,0.10365264,40313.0,40307.0,0.062027]
[1643993282340,0.124058,40316.0,40308.0,0.006498]
[1643993282540,0.0015478,40310.0,40306.0,0.95]
[1643993282740,0.00836427,40311.0,40309.0,0.0484522]
[1643993282939,0.0015478,40310.0,40307.0,0.00646]
[1643993283181,0.0015478,40310.0,40309.0,1.4863232]
[1643993283378,0.0015478,40310.0,40309.0,0.3863232]
[1643993283580,0.0015478,40310.0,40309.0,0.3813232]
[1643993283776,0.0065478,40310.0,40309.0,0.3813232]
[1643993283976,0.11786941,40311.0,40306.0,0.062028]
[1643993284176,0.11786941,40311.0,40306.0,0.057028]
[1643993284376,0.0065478,40307.0,40305.0,0.20429622]
[1643993284577,0.05,40310.0,40306.0,0.837871]
[1643993284780,0.05,40310.0,40305.0,0.0434522]
[1643993284781,0.0065478,40307.0,40302.0,0.00030465]
[1643993284979,0.062041,40307.0,40305.0,0.00030465]
[1643993285179,0.15375064,40302.0,40301.0,0.00030465]
[1643993285378,0.15375064,40302.0,40297.0,0.92920846]
[1643993285379,0.0065478,40302.0,40298.0,0.00030465]
[1643993285981,0.0565478,40302.0,40301.0,0.337871]
[1643993286282,0.0065478,40302.0,40300.0,0.342871]
[1643993286478,0.16529577,40302.0,40300.0,0.342871]
[1643993286932,2.01649868,40301.0,40300.0,0.005]
[1643993287133,2.87065019,40301.0,40300.0,0.005]
[1643993287332,0.807571,40301.0,40300.0,0.005]
[1643993287730,0.4697,40301.0,40300.0,0.005]
[1643993287932,0.807571,40301.0,40300.0,0.005]
[1643993288931,0.857571,40301.0,40300.0,0.005]
[1643993289131,0.86407602,40301.0,40300.0,0.005]
[1643993290986,0.52620502,40301.0,40300.0,0.005]
[1643993291680,0.0497,40301.0,40300.0,0.005]
[1643993292281,0.02402501,40301.0,40300.0,1.155]
[1643993292585,0.00623729,40307.0,40300.0,0.005]
[1643993292781,0.337871,40305.0,40301.0,0.00030465]
[1643993293082,0.337871,40305.0,40300.0,0.005]
[1643993293280,0.05634683,40306.0,40300.0,0.13646614]
[1643993293479,0.05,40306.0,40300.0,0.62231023]
[1643993293686,0.47,40309.0,40301.0,0.062041]
[1643993293882,0.025,40310.0,40308.0,0.05]
[1643993294084,0.025,40310.0,40309.0,0.337871]
[1643993294338,0.025,40310.0,40309.0,1.987871]
[1643993294535,0.025,40310.0,40309.0,0.76754815]
[1643993294936,0.025,40310.0,40309.0,0.399895]